[Event "GrandPrix_30.05"]
[Site "Chess.com"]
[Date "2020.05.30"]
[Round "7"]
[White "BogdanDeac"]
[Black "LiamVrolijk"]
[Result "0-1"]
[WhiteElo "2537"]
[BlackElo "2489"]
[TimeControl "600+2"]
[EndTime "11:29:52 PDT"]
[Termination "LiamVrolijk won by resignation"]

1. e4 {[%clk 0:10:01.9]} 1... e5 {[%clk 0:09:59.4]} 2. Nf3 {[%clk 0:10:01.9]}
2... Nc6 {[%clk 0:10:00.6]} 3. Bb5 {[%clk 0:10:02.9]} 3... Nf6 {[%clk
0:10:01.4]} 4. d3 {[%clk 0:10:02.2]} 4... Bc5 {[%clk 0:10:02.1]} 5. Nbd2 {[%clk
0:09:55.1]} 5... d6 {[%clk 0:09:59.9]} 6. c3 {[%clk 0:09:52]} 6... O-O {[%clk
0:10:00.6]} 7. O-O {[%clk 0:09:52.5]} 7... a6 {[%clk 0:10:00.5]} 8. Bxc6 {[%clk
0:09:50.4]} 8... bxc6 {[%clk 0:10:01.5]} 9. h3 {[%clk 0:09:07.7]} 9... a5 {[%clk
0:09:43.7]} 10. Re1 {[%clk 0:09:07.8]} 10... Re8 {[%clk 0:09:41.1]} 11. Nf1
{[%clk 0:09:06.2]} 11... Bb6 {[%clk 0:09:09]} 12. Ng3 {[%clk 0:07:29.5]} 12...
Rb8 {[%clk 0:08:59.8]} 13. b3 {[%clk 0:05:27.8]} 13... h6 {[%clk 0:08:55.2]} 14.
d4 {[%clk 0:05:10.8]} 14... exd4 {[%clk 0:07:22.7]} 15. cxd4 {[%clk 0:05:12.7]}
15... d5 {[%clk 0:05:50.7]} 16. e5 {[%clk 0:05:09.3]} 16... Ne4 {[%clk
0:05:51.5]} 17. Nxe4 {[%clk 0:03:46.9]} 17... dxe4 {[%clk 0:05:53.4]} 18. Rxe4
{[%clk 0:03:48.3]} 18... c5 {[%clk 0:05:38.3]} 19. d5 {[%clk 0:03:39.5]} 19...
Bb7 {[%clk 0:05:36.3]} 20. Rg4 {[%clk 0:02:11.6]} 20... h5 {[%clk 0:05:21.4]}
21. Rg5 {[%clk 0:01:17.8]} 21... Qxd5 {[%clk 0:05:19.9]} 22. Be3 {[%clk
0:00:44.3]} 22... Qxd1+ {[%clk 0:04:18.5]} 23. Rxd1 {[%clk 0:00:43.7]} 23... g6
{[%clk 0:02:59.1]} 24. Rc1 {[%clk 0:00:43.7]} 24... Rbd8 {[%clk 0:02:13.1]} 25.
Bxc5 {[%clk 0:00:30.5]} 25... Bxf3 {[%clk 0:02:14.1]} 26. gxf3 {[%clk
0:00:30.1]} 26... Rd5 {[%clk 0:02:15.7]} 27. Bxb6 {[%clk 0:00:22]} 27... cxb6
{[%clk 0:02:17.6]} 28. f4 {[%clk 0:00:21.8]} 28... Rd4 {[%clk 0:01:57]} 29. Rc6
{[%clk 0:00:22.2]} 29... Rxf4 {[%clk 0:01:08.1]} 30. Rxb6 {[%clk 0:00:22.6]}
30... Rc8 {[%clk 0:01:08.2]} 31. Rf6 {[%clk 0:00:18.2]} 31... Rxf6 {[%clk
0:00:37.7]} 32. exf6 {[%clk 0:00:18.8]} 32... a4 {[%clk 0:00:39.6]} 33. bxa4
{[%clk 0:00:19.1]} 33... Rc2 {[%clk 0:00:36.1]} 34. a5 {[%clk 0:00:20.1]} 34...
Rxa2 {[%clk 0:00:36]} 35. Rb5 {[%clk 0:00:21.7]} 35... Kh7 {[%clk 0:00:35]} 36.
Kg2 {[%clk 0:00:22.7]} 36... h4 {[%clk 0:00:29.4]} 37. Kf3 {[%clk 0:00:21]}
37... Kh6 {[%clk 0:00:28]} 38. Kg4 {[%clk 0:00:13.2]} 38... Rxf2 {[%clk
0:00:27.3]} 39. Kxh4 {[%clk 0:00:14.3]} 39... Rxf6 {[%clk 0:00:25.6]} 40. Rb4
{[%clk 0:00:14.6]} 40... Ra6 {[%clk 0:00:17.3]} 41. Ra4 {[%clk 0:00:10.9]} 41...
f6 {[%clk 0:00:18.6]} 42. Kg4 {[%clk 0:00:11.9]} 42... Kg7 {[%clk 0:00:19.5]}
43. Kf4 {[%clk 0:00:13.2]} 43... Kh6 {[%clk 0:00:20.4]} 44. Ke4 {[%clk 0:00:13]}
44... Kg5 {[%clk 0:00:12.5]} 45. Kd5 {[%clk 0:00:13.5]} 45... f5 {[%clk
0:00:14]} 46. Kc5 {[%clk 0:00:13.9]} 46... f4 {[%clk 0:00:12.3]} 47. Kb5 {[%clk
0:00:14.8]} 47... Rf6 {[%clk 0:00:07.7]} 48. a6 {[%clk 0:00:09.6]} 48... f3
{[%clk 0:00:09.1]} 49. Ra1 {[%clk 0:00:08.8]} 49... Kh4 {[%clk 0:00:07.7]} 50.
a7 {[%clk 0:00:08.9]} 50... Rf8 {[%clk 0:00:08.6]} 51. Rf1 {[%clk 0:00:08.9]}
51... Kg3 {[%clk 0:00:08.4]} 52. Rg1+ {[%clk 0:00:09.3]} 52... Kh2 {[%clk
0:00:08.9]} 53. Ra1 {[%clk 0:00:06]} 53... f2 {[%clk 0:00:09.4]} 54. Kb6 {[%clk
0:00:05.3]} 54... Kxh3 {[%clk 0:00:07.5]} 55. Kb7 {[%clk 0:00:06.5]} 55... Kg2
{[%clk 0:00:08.7]} 56. a8=Q {[%clk 0:00:07.7]} 56... Rxa8 {[%clk 0:00:09.3]} 57.
Kxa8 {[%clk 0:00:09.6]} 57... f1=Q {[%clk 0:00:10.5]} 58. Kb7 {[%clk 0:00:11.2]}
58... Qxa1 {[%clk 0:00:10.9]} 0-1

[Event "GrandPrix_30.05"]
[Site "Chess.com"]
[Date "2020.05.30"]
[Round "7"]
[White "SamadovRead"]
[Black "lelajavakhishvili"]
[Result "1-0"]
[WhiteElo "1983"]
[BlackElo "2047"]
[TimeControl "600+2"]
[EndTime "11:29:52 PDT"]
[Termination "SamadovRead won by resignation"]

1. d4 {[%clk 0:10:01.9]} 1... Nf6 {[%clk 0:09:58.3]} 2. c4 {[%clk 0:10:02.4]}
2... e6 {[%clk 0:09:59.4]} 3. g3 {[%clk 0:10:03.4]} 3... c5 {[%clk 0:09:52.1]}
4. Nf3 {[%clk 0:10:03.3]} 4... cxd4 {[%clk 0:09:51.7]} 5. Nxd4 {[%clk
0:10:04.2]} 5... Nc6 {[%clk 0:09:53.1]} 6. Bg2 {[%clk 0:10:03.5]} 6... Qb6
{[%clk 0:09:54.1]} 7. Nb3 {[%clk 0:08:58.9]} 7... Bb4+ {[%clk 0:09:42.9]} 8. Bd2
{[%clk 0:08:56.3]} 8... O-O {[%clk 0:09:36.8]} 9. O-O {[%clk 0:08:55.2]} 9...
Bxd2 {[%clk 0:09:27.6]} 10. Qxd2 {[%clk 0:08:50.9]} 10... Ne5 {[%clk 0:09:19.3]}
11. c5 {[%clk 0:08:31.6]} 11... Qc7 {[%clk 0:09:13.5]} 12. Nc3 {[%clk
0:08:19.2]} 12... a6 {[%clk 0:08:49.8]} 13. Na4 {[%clk 0:08:10.3]} 13... Rb8
{[%clk 0:08:34.3]} 14. Rac1 {[%clk 0:07:25.3]} 14... Rd8 {[%clk 0:08:34]} 15.
Rfd1 {[%clk 0:07:19.8]} 15... Ne8 {[%clk 0:08:34.4]} 16. Qa5 {[%clk 0:06:58.4]}
16... d5 {[%clk 0:07:52.9]} 17. cxd6 {[%clk 0:05:52.2]} 17... Qxa5 {[%clk
0:07:53.4]} 18. Nxa5 {[%clk 0:05:52.5]} 18... Rxd6 {[%clk 0:07:51]} 19. Rxd6
{[%clk 0:05:46.7]} 19... Nxd6 {[%clk 0:07:51.6]} 20. Nb6 {[%clk 0:05:39.4]}
20... Kf8 {[%clk 0:07:31.9]} 21. Nxc8 {[%clk 0:05:18.5]} 21... Nxc8 {[%clk
0:07:27.9]} 22. Nxb7 {[%clk 0:05:16.8]} 22... Ne7 {[%clk 0:07:13.1]} 23. b4
{[%clk 0:05:06]} 23... N5c6 {[%clk 0:05:51.2]} 24. Rxc6 {[%clk 0:04:51.6]} 24...
Nxc6 {[%clk 0:05:42.6]} 25. Bxc6 {[%clk 0:04:52.5]} 25... Rc8 {[%clk 0:05:37.3]}
26. Na5 {[%clk 0:04:51.5]} 26... Ke7 {[%clk 0:05:37.3]} 27. a3 {[%clk
0:04:46.3]} 27... Kd6 {[%clk 0:05:34.5]} 28. Bb7 {[%clk 0:04:43.4]} 28... Rc3
{[%clk 0:05:17.9]} 29. Bxa6 {[%clk 0:04:41.6]} 29... Kc7 {[%clk 0:05:18.7]} 30.
Nc4 {[%clk 0:04:02.2]} 30... h5 {[%clk 0:05:17.9]} 31. h4 {[%clk 0:03:54.2]}
31... f6 {[%clk 0:05:17.5]} 32. a4 {[%clk 0:03:45.7]} 32... Kb8 {[%clk
0:05:07.4]} 33. Na5 {[%clk 0:03:30]} 33... g5 {[%clk 0:04:47.3]} 34. hxg5 {[%clk
0:03:26.7]} 34... fxg5 {[%clk 0:04:47.8]} 35. Bc4 {[%clk 0:03:09.8]} 35... e5
{[%clk 0:04:40.9]} 36. Nc6+ {[%clk 0:03:04.8]} 36... Kc7 {[%clk 0:04:40.1]} 37.
Nxe5 {[%clk 0:03:03.1]} 37... Kd6 {[%clk 0:04:38.9]} 38. Nf7+ {[%clk 0:03:03.9]}
38... Ke7 {[%clk 0:04:39.9]} 39. Bd5 {[%clk 0:03:04.2]} 39... Kf6 {[%clk
0:04:32.7]} 40. a5 {[%clk 0:03:00.2]} 40... Ra3 {[%clk 0:04:26.7]} 41. Nd6
{[%clk 0:02:59.1]} 41... Ra1+ {[%clk 0:04:25.9]} 42. Kg2 {[%clk 0:02:55.5]}
42... Ke5 {[%clk 0:04:27.1]} 43. Ne4 {[%clk 0:02:25.5]} 43... Kxd5 {[%clk
0:04:23.4]} 44. Nxg5 {[%clk 0:02:26.8]} 44... Ra4 {[%clk 0:04:22.4]} 45. Nh3
{[%clk 0:02:24.9]} 45... Rxb4 {[%clk 0:04:12.8]} 46. Nf4+ {[%clk 0:02:25.6]}
46... Kd6 {[%clk 0:04:11.1]} 47. Nxh5 {[%clk 0:02:25.2]} 47... Rb5 {[%clk
0:04:11.9]} 48. g4 {[%clk 0:02:24.2]} 48... Rxa5 {[%clk 0:04:12.3]} 49. f4
{[%clk 0:02:24.3]} 49... Ra3 {[%clk 0:04:09.3]} 50. Kf2 {[%clk 0:02:23.7]} 50...
Ke6 {[%clk 0:04:09.3]} 51. e3 {[%clk 0:02:24.7]} 51... Ra1 {[%clk 0:04:08.5]}
52. Kf3 {[%clk 0:02:24.9]} 52... Rh1 {[%clk 0:04:02.6]} 53. Ng3 {[%clk
0:02:22.3]} 53... Rg1 {[%clk 0:04:02.1]} 54. g5 {[%clk 0:02:21.6]} 54... Ra1
{[%clk 0:03:56]} 55. Kg4 {[%clk 0:02:18.4]} 55... Rg1 {[%clk 0:03:48.5]} 56. e4
{[%clk 0:02:17.7]} 56... Rg2 {[%clk 0:03:40]} 57. Kf3 {[%clk 0:02:14.9]} 57...
Rg1 {[%clk 0:03:34.9]} 58. Nf5 {[%clk 0:02:11.8]} 58... Rf1+ {[%clk 0:03:32.7]}
59. Kg4 {[%clk 0:02:11.6]} 59... Rg1+ {[%clk 0:03:28.6]} 60. Kh5 {[%clk
0:02:05.3]} 60... Kf7 {[%clk 0:03:17.4]} 61. Nh6+ {[%clk 0:02:00.1]} 61... Kg7
{[%clk 0:03:16.2]} 62. f5 {[%clk 0:01:58.5]} 62... Rh1+ {[%clk 0:02:30.7]} 63.
Kg4 {[%clk 0:01:58.7]} 63... Rg1+ {[%clk 0:02:28.4]} 64. Kf4 {[%clk 0:01:59]}
64... Rf1+ {[%clk 0:02:26.4]} 65. Ke5 {[%clk 0:01:26.3]} 65... Rg1 {[%clk
0:02:27.1]} 66. f6+ {[%clk 0:01:21.4]} 66... Kg6 {[%clk 0:02:24.3]} 67. Ke6
{[%clk 0:01:16.6]} 67... Rxg5 {[%clk 0:01:51.9]} 68. Nf5 {[%clk 0:01:12.5]}
68... Rg4 {[%clk 0:01:28.3]} 69. Ne7+ {[%clk 0:01:11.1]} 69... Kh7 {[%clk
0:01:27.2]} 70. e5 {[%clk 0:01:10.4]} 70... Re4 {[%clk 0:00:50.3]} 71. f7 {[%clk
0:00:57.9]} 71... Kg7 {[%clk 0:00:44.6]} 72. Ng6 {[%clk 0:00:54]} 72... Rxe5+
{[%clk 0:00:44]} 73. Nxe5 {[%clk 0:00:52.9]} 1-0

[Event "GrandPrix_30.05"]
[Site "Chess.com"]
[Date "2020.05.30"]
[Round "7"]
[White "VincentKeymer"]
[Black "DariaVoit"]
[Result "1-0"]
[WhiteElo "2632"]
[BlackElo "2364"]
[TimeControl "600+2"]
[EndTime "11:29:59 PDT"]
[Termination "VincentKeymer won by resignation"]

1. Nf3 {[%clk 0:10:01.7]} 1... Nf6 {[%clk 0:09:59.2]} 2. c4 {[%clk 0:10:02.3]}
2... c5 {[%clk 0:09:57.5]} 3. Nc3 {[%clk 0:10:03.4]} 3... Nc6 {[%clk 0:09:58.3]}
4. g3 {[%clk 0:10:04.5]} 4... e6 {[%clk 0:09:54.2]} 5. Bg2 {[%clk 0:10:05.1]}
5... d5 {[%clk 0:09:52.3]} 6. cxd5 {[%clk 0:10:05.7]} 6... Nxd5 {[%clk
0:09:37.7]} 7. Nxd5 {[%clk 0:09:52]} 7... Qxd5 {[%clk 0:09:32.9]} 8. b3 {[%clk
0:09:51.5]} 8... Be7 {[%clk 0:09:29.7]} 9. Bb2 {[%clk 0:09:50.6]} 9... O-O
{[%clk 0:09:31.2]} 10. O-O {[%clk 0:09:51.7]} 10... Bf6 {[%clk 0:08:38.4]} 11.
Bxf6 {[%clk 0:09:37.3]} 11... gxf6 {[%clk 0:08:40.3]} 12. Rc1 {[%clk 0:09:35.6]}
12... Rb8 {[%clk 0:07:59.9]} 13. Rc4 {[%clk 0:08:49]} 13... Ne7 {[%clk 0:07:06]}
14. d4 {[%clk 0:07:51]} 14... cxd4 {[%clk 0:06:58.5]} 15. Nxd4 {[%clk
0:07:51.2]} 15... Qa5 {[%clk 0:06:55.8]} 16. Qa1 {[%clk 0:07:02]} 16... Rd8
{[%clk 0:06:05.6]} 17. Rd1 {[%clk 0:06:24.9]} 17... Qe5 {[%clk 0:05:38.2]} 18.
Qc1 {[%clk 0:06:05.5]} 18... b5 {[%clk 0:04:40.1]} 19. Nf3 {[%clk 0:05:41.3]}
19... Rxd1+ {[%clk 0:04:24.4]} 20. Qxd1 {[%clk 0:05:43.2]} 20... Qd5 {[%clk
0:04:17.6]} 21. Rd4 {[%clk 0:05:30.3]} 21... Qc5 {[%clk 0:04:11]} 22. Rd8+
{[%clk 0:05:06.9]} 22... Kg7 {[%clk 0:04:11.2]} 23. Qd4 {[%clk 0:04:32.9]} 23...
Qc1+ {[%clk 0:03:53.6]} 24. Bf1 {[%clk 0:04:14.7]} 24... e5 {[%clk 0:03:48]} 25.
Qd2 {[%clk 0:03:46.5]} 25... Qxd2 {[%clk 0:03:26.9]} 26. Nxd2 {[%clk 0:03:48.4]}
26... Rb7 {[%clk 0:03:26]} 27. Ne4 {[%clk 0:03:29.2]} 27... Rc7 {[%clk
0:03:24.6]} 28. Nd6 {[%clk 0:03:20.5]} 28... Rc1 {[%clk 0:03:11.3]} 29. Kg2
{[%clk 0:03:11]} 29... b4 {[%clk 0:02:16.5]} 30. Re8 {[%clk 0:02:52.4]} 30...
Rc7 {[%clk 0:01:54.7]} 31. Rxe7 {[%clk 0:02:25.1]} 31... Rxe7 {[%clk 0:01:55.5]}
32. Nxc8 {[%clk 0:02:26.3]} 32... Rc7 {[%clk 0:01:51.6]} 33. Nd6 {[%clk
0:02:25.9]} 33... Rc2 {[%clk 0:01:51.5]} 34. e3 {[%clk 0:02:23.8]} 34... Rxa2
{[%clk 0:01:50.6]} 35. Bb5 {[%clk 0:02:22.6]} 35... Kf8 {[%clk 0:01:00.8]} 36.
Ba4 {[%clk 0:02:06.6]} 36... Rc2 {[%clk 0:01:00.5]} 37. g4 {[%clk 0:01:56.4]}
37... Ke7 {[%clk 0:00:59.3]} 38. Ne4 {[%clk 0:01:57.6]} 38... Ke6 {[%clk
0:00:58.3]} 39. h3 {[%clk 0:01:53.8]} 39... h6 {[%clk 0:00:58.2]} 40. Ng3 {[%clk
0:01:48.4]} 40... Ra2 {[%clk 0:00:43.2]} 41. Bb5 {[%clk 0:01:45]} 41... Rc2
{[%clk 0:00:33.7]} 42. Kf3 {[%clk 0:01:44.6]} 42... Kd6 {[%clk 0:00:19.1]} 43.
Ne4+ {[%clk 0:01:36.4]} 43... Ke6 {[%clk 0:00:17.2]} 44. Bd3 {[%clk 0:01:34.3]}
44... Rc1 {[%clk 0:00:16.1]} 45. Bc4+ {[%clk 0:01:35.1]} 45... Ke7 {[%clk
0:00:17]} 46. Ng3 {[%clk 0:01:28.5]} 46... a5 {[%clk 0:00:17.8]} 47. Nf5+ {[%clk
0:01:27.1]} 47... Kf8 {[%clk 0:00:17.9]} 48. Bb5 {[%clk 0:01:21.7]} 48... Rh1
{[%clk 0:00:13.8]} 49. h4 {[%clk 0:01:15.3]} 49... Rb1 {[%clk 0:00:14.7]} 50.
Ba4 {[%clk 0:01:14.5]} 50... Ra1 {[%clk 0:00:16]} 51. Nd6 {[%clk 0:01:15.1]}
51... Ke7 {[%clk 0:00:15.9]} 52. Nc4 {[%clk 0:01:16.1]} 52... Rh1 {[%clk
0:00:14.5]} 53. h5 {[%clk 0:01:15.7]} 53... f5 {[%clk 0:00:14.6]} 54. gxf5
{[%clk 0:01:13.5]} 54... Rxh5 {[%clk 0:00:14.8]} 55. e4 {[%clk 0:01:10.9]} 55...
Rg5 {[%clk 0:00:13.8]} 56. Nxa5 {[%clk 0:01:11.4]} 56... h5 {[%clk 0:00:15.1]}
57. Nc6+ {[%clk 0:01:05.1]} 57... Kf6 {[%clk 0:00:15]} 58. Nxb4 {[%clk
0:01:04.9]} 58... h4 {[%clk 0:00:16.2]} 59. Nd5+ {[%clk 0:01:06]} 59... Kg7
{[%clk 0:00:15.7]} 60. f6+ {[%clk 0:01:07.1]} 60... Kg6 {[%clk 0:00:16.2]} 61.
Bd7 {[%clk 0:01:08.6]} 61... Rg1 {[%clk 0:00:15.4]} 62. b4 {[%clk 0:01:06.5]}
62... Rb1 {[%clk 0:00:04.5]} 63. b5 {[%clk 0:01:07.1]} 63... Kg5 {[%clk
0:00:05]} 64. b6 {[%clk 0:01:06.3]} 64... Rb3+ {[%clk 0:00:06.2]} 65. Kg2 {[%clk
0:01:07.1]} 65... Rb2 {[%clk 0:00:07.2]} 66. Bc8 {[%clk 0:01:06.5]} 66... Rb3
{[%clk 0:00:07.7]} 67. b7 {[%clk 0:01:07.3]} 67... Rb2 {[%clk 0:00:09]} 68. Ne7
{[%clk 0:01:04.4]} 68... Kxf6 {[%clk 0:00:09.3]} 69. Nc6 {[%clk 0:01:05.2]}
69... Kg5 {[%clk 0:00:06.3]} 70. b8=Q {[%clk 0:01:05.7]} 70... Rxb8 {[%clk
0:00:07.9]} 71. Nxb8 {[%clk 0:01:07.6]} 71... Kf4 {[%clk 0:00:09.4]} 72. Bf5
{[%clk 0:01:08.3]} 1-0

[Event "GrandPrix_30.05"]
[Site "Chess.com"]
[Date "2020.05.30"]
[Round "7"]
[White "Anton_Demchenko"]
[Black "khekhm"]
[Result "1-0"]
[WhiteElo "2642"]
[BlackElo "2451"]
[TimeControl "600+2"]
[EndTime "11:30:03 PDT"]
[Termination "Anton_Demchenko won on time"]

1. d4 {[%clk 0:10:01.9]} 1... Nf6 {[%clk 0:09:55.9]} 2. Nf3 {[%clk 0:10:02]}
2... g6 {[%clk 0:09:56.9]} 3. Bf4 {[%clk 0:10:02.5]} 3... Bg7 {[%clk 0:09:57.9]}
4. c3 {[%clk 0:10:03.8]} 4... O-O {[%clk 0:09:54.1]} 5. Nbd2 {[%clk 0:10:04.9]}
5... d6 {[%clk 0:09:54.9]} 6. e4 {[%clk 0:10:04.8]} 6... Nbd7 {[%clk 0:09:54.3]}
7. Qc2 {[%clk 0:10:03]} 7... c5 {[%clk 0:09:34.7]} 8. d5 {[%clk 0:09:56.6]} 8...
a6 {[%clk 0:09:22]} 9. a4 {[%clk 0:09:54.6]} 9... b6 {[%clk 0:09:19]} 10. Be2
{[%clk 0:09:52.3]} 10... Rb8 {[%clk 0:09:18.3]} 11. O-O {[%clk 0:09:33.3]} 11...
b5 {[%clk 0:09:19]} 12. axb5 {[%clk 0:09:29.6]} 12... axb5 {[%clk 0:09:20.9]}
13. h3 {[%clk 0:08:44.2]} 13... Re8 {[%clk 0:09:19.3]} 14. Rfd1 {[%clk
0:08:28.3]} 14... Qc7 {[%clk 0:09:12.8]} 15. Nb3 {[%clk 0:08:00.9]} 15... Ne5
{[%clk 0:08:39.2]} 16. Nxe5 {[%clk 0:07:00.8]} 16... dxe5 {[%clk 0:08:41.1]} 17.
Be3 {[%clk 0:07:02.3]} 17... c4 {[%clk 0:07:53]} 18. Nc5 {[%clk 0:06:51.2]}
18... Qd6 {[%clk 0:07:23.8]} 19. b3 {[%clk 0:05:52.8]} 19... cxb3 {[%clk
0:07:23.7]} 20. Qxb3 {[%clk 0:05:54.7]} 20... Nd7 {[%clk 0:06:09.8]} 21. Qb4
{[%clk 0:05:53.9]} 21... f5 {[%clk 0:05:14.1]} 22. f3 {[%clk 0:05:48.4]} 22...
Bh6 {[%clk 0:04:25.4]} 23. Bf2 {[%clk 0:04:44.4]} 23... fxe4 {[%clk 0:04:11]}
24. Nxe4 {[%clk 0:04:05.3]} 24... Qxb4 {[%clk 0:03:51.3]} 25. cxb4 {[%clk
0:04:07.2]} 25... Nf6 {[%clk 0:02:23]} 26. Ra5 {[%clk 0:04:07]} 26... Nxe4
{[%clk 0:02:10.6]} 27. fxe4 {[%clk 0:04:07.2]} 27... Bd7 {[%clk 0:02:12.1]} 28.
Ra7 {[%clk 0:04:05.1]} 28... Red8 {[%clk 0:02:07.2]} 29. Bc5 {[%clk 0:03:57.4]}
29... Kf7 {[%clk 0:01:58.2]} 30. Bg4 {[%clk 0:03:15.8]} 30... Ke8 {[%clk
0:00:40.7]} 31. Rda1 {[%clk 0:01:39.5]} 31... Bg5 {[%clk 0:00:38]} 32. Be2
{[%clk 0:01:25.6]} 32... h5 {[%clk 0:00:31.2]} 33. R1a6 {[%clk 0:01:19.4]} 33...
Bf6 {[%clk 0:00:28.7]} 34. Kf2 {[%clk 0:01:12.5]} 34... Rdc8 {[%clk 0:00:25]}
35. g4 {[%clk 0:00:27.1]} 35... hxg4 {[%clk 0:00:21.6]} 36. Bxg4 {[%clk
0:00:26.5]} 36... Bxg4 {[%clk 0:00:22]} 37. hxg4 {[%clk 0:00:28.4]} 37... Rd8
{[%clk 0:00:13.4]} 38. g5 {[%clk 0:00:17.2]} 38... Bxg5 {[%clk 0:00:14.4]} 39.
Rxg6 {[%clk 0:00:18.2]} 39... Bh4+ {[%clk 0:00:09.8]} 40. Kf3 {[%clk 0:00:17.7]}
40... Kf7 {[%clk 0:00:10.7]} 41. Re6 {[%clk 0:00:17.8]} 41... Rf8 {[%clk
0:00:04]} 42. Kg4 {[%clk 0:00:17.3]} 42... Bf6 {[%clk 0:00:02.3]} 43. Bxe7
{[%clk 0:00:18.5]} 43... Bxe7 {[%clk 0:00:03.5]} 44. Raxe7+ {[%clk 0:00:19.2]}
44... Kg8 {[%clk 0:00:04.8]} 45. Rh6 {[%clk 0:00:20.3]} 45... Rf4+ {[%clk
0:00:05]} 46. Kg5 {[%clk 0:00:21.2]} 46... Rxe4 {[%clk 0:00:06.5]} 47. d6 {[%clk
0:00:05.7]} 47... Re1 {[%clk 0:00:06]} 48. Kf5 {[%clk 0:00:05.2]} 48... Rf8+
{[%clk 0:00:05.6]} 49. Ke6 {[%clk 0:00:06.3]} 49... e4 {[%clk 0:00:06.4]} 50.
Rg6+ {[%clk 0:00:06.9]} 50... Kh8 {[%clk 0:00:07.4]} 51. Rgg7 {[%clk 0:00:08.3]}
51... Rf2 {[%clk 0:00:02.5]} 52. d7 {[%clk 0:00:08.7]} 52... Rd1 {[%clk
0:00:03.8]} 53. Rgf7 {[%clk 0:00:08.5]} 53... Rxf7 {[%clk 0:00:04.5]} 54. Kxf7
{[%clk 0:00:08.8]} 54... e3 {[%clk 0:00:02.9]} 55. Ke8 {[%clk 0:00:10.4]} 55...
Kg8 {[%clk 0:00:02.2]} 56. d8=Q {[%clk 0:00:10.8]} 56... Rxd8+ {[%clk
0:00:03.2]} 57. Kxd8 {[%clk 0:00:12.7]} 57... e2 {[%clk 0:00:04.5]} 58. Rxe2
{[%clk 0:00:13.9]} 1-0

[Event "GrandPrix_30.05"]
[Site "Chess.com"]
[Date "2020.05.30"]
[Round "7"]
[White "Ave_Mariia"]
[Black "Natalya_Buksa"]
[Result "1/2-1/2"]
[WhiteElo "2197"]
[BlackElo "2105"]
[TimeControl "600+2"]
[EndTime "11:30:03 PDT"]
[Termination "Game drawn by agreement"]

1. c4 {[%clk 0:10:01.9]} 1... e6 {[%clk 0:09:58.5]} 2. g3 {[%clk 0:09:58.7]}
2... Nf6 {[%clk 0:09:59.3]} 3. Nf3 {[%clk 0:09:59]} 3... d5 {[%clk 0:10:00.3]}
4. Bg2 {[%clk 0:10:00]} 4... Be7 {[%clk 0:10:01.4]} 5. O-O {[%clk 0:10:00.3]}
5... O-O {[%clk 0:10:02.5]} 6. d4 {[%clk 0:09:54.8]} 6... dxc4 {[%clk 0:10:02]}
7. Qc2 {[%clk 0:09:56.1]} 7... c6 {[%clk 0:10:02.4]} 8. Qxc4 {[%clk 0:09:54.7]}
8... b5 {[%clk 0:10:03.3]} 9. Qc2 {[%clk 0:09:55.3]} 9... Bb7 {[%clk 0:10:04.3]}
10. Rd1 {[%clk 0:09:54.2]} 10... Nbd7 {[%clk 0:10:04.2]} 11. Nc3 {[%clk
0:09:40]} 11... Qb6 {[%clk 0:09:58.8]} 12. e4 {[%clk 0:09:32.4]} 12... c5 {[%clk
0:09:40.5]} 13. e5 {[%clk 0:08:15.6]} 13... Nd5 {[%clk 0:09:38.4]} 14. Nxd5
{[%clk 0:07:09.7]} 14... Bxd5 {[%clk 0:09:37.5]} 15. Be3 {[%clk 0:06:51.8]}
15... h6 {[%clk 0:09:18.2]} 16. Rac1 {[%clk 0:06:13]} 16... Rac8 {[%clk
0:08:59.3]} 17. Qd2 {[%clk 0:05:31.1]} 17... Qb7 {[%clk 0:08:36.2]} 18. Ne1
{[%clk 0:05:20.6]} 18... Bxg2 {[%clk 0:08:35.6]} 19. Nxg2 {[%clk 0:05:21.8]}
19... cxd4 {[%clk 0:08:36.5]} 20. Qxd4 {[%clk 0:05:10.1]} 20... Nb6 {[%clk
0:08:31.3]} 21. Qg4 {[%clk 0:04:42.9]} 21... Kh7 {[%clk 0:08:20.9]} 22. Nf4
{[%clk 0:04:33.9]} 22... Nc4 {[%clk 0:07:32.4]} 23. Nh5 {[%clk 0:03:33.9]} 23...
Rg8 {[%clk 0:07:04.4]} 24. Bd4 {[%clk 0:03:13.9]} 24... Rcd8 {[%clk 0:06:41.9]}
25. Bc3 {[%clk 0:03:02]} 25... Nb6 {[%clk 0:02:27.6]} 26. Rxd8 {[%clk
0:02:38.1]} 26... Bxd8 {[%clk 0:02:27.9]} 27. Rd1 {[%clk 0:02:33.7]} 27... g6
{[%clk 0:02:16.1]} 28. Nf6+ {[%clk 0:02:19.9]} 28... Bxf6 {[%clk 0:02:16.4]} 29.
exf6 {[%clk 0:02:21.8]} 29... Nd5 {[%clk 0:02:17.3]} 30. Qe4 {[%clk 0:02:02.2]}
30... Qc6 {[%clk 0:02:11.9]} 31. h4 {[%clk 0:01:15.9]} 31... h5 {[%clk
0:01:08.1]} 32. Bd2 {[%clk 0:00:48.1]} 32... Qc4 {[%clk 0:00:50.5]} 33. Qe5
{[%clk 0:00:36.4]} 33... g5 {[%clk 0:00:22.5]} 34. hxg5 {[%clk 0:00:35.2]} 34...
Qc2 {[%clk 0:00:23.2]} 35. Qe2 {[%clk 0:00:33.4]} 35... Kg6 {[%clk 0:00:20.4]}
36. Rc1 {[%clk 0:00:33]} 36... Qf5 {[%clk 0:00:19.6]} 37. Qxb5 {[%clk
0:00:25.2]} 37... h4 {[%clk 0:00:20.8]} 38. Qc4 {[%clk 0:00:20]} 38... hxg3
{[%clk 0:00:18]} 39. fxg3 {[%clk 0:00:21.9]} 39... Rh8 {[%clk 0:00:19.1]} 40.
Qc2 {[%clk 0:00:23]} 40... Rb8 {[%clk 0:00:12]} 41. g4 {[%clk 0:00:22.2]} 41...
Qxc2 {[%clk 0:00:12.6]} 42. Rxc2 {[%clk 0:00:24.1]} 42... Rb5 {[%clk 0:00:10.3]}
43. Kg2 {[%clk 0:00:24]} 43... a6 {[%clk 0:00:07.2]} 44. Kg3 {[%clk 0:00:24.6]}
44... a5 {[%clk 0:00:07.7]} 45. Bc1 {[%clk 0:00:25.4]} 45... Nb4 {[%clk
0:00:08.4]} 46. Rh2 {[%clk 0:00:25.3]} 46... Rxg5 {[%clk 0:00:06.4]} 47. Bxg5
{[%clk 0:00:26]} 47... Kxg5 {[%clk 0:00:08.3]} 48. Rh5+ {[%clk 0:00:26.1]} 48...
Kxf6 {[%clk 0:00:08.9]} 49. Rxa5 {[%clk 0:00:27.7]} 49... Nd3 {[%clk 0:00:10.3]}
50. g5+ {[%clk 0:00:26.8]} 50... Kg6 {[%clk 0:00:11.1]} 51. b3 {[%clk
0:00:23.2]} 51... e5 {[%clk 0:00:06.8]} 52. Rd5 {[%clk 0:00:22.5]} 52... e4
{[%clk 0:00:08.2]} 53. a4 {[%clk 0:00:18.7]} 53... Nc1 {[%clk 0:00:07.1]} 54. b4
{[%clk 0:00:17.1]} 54... e3 {[%clk 0:00:06.7]} 55. Kf3 {[%clk 0:00:17.2]} 55...
e2 {[%clk 0:00:07.9]} 56. Kf2 {[%clk 0:00:17.5]} 56... f6 {[%clk 0:00:09.2]} 57.
gxf6 {[%clk 0:00:18.1]} 57... Kxf6 {[%clk 0:00:11.1]} 58. Rc5 {[%clk 0:00:17.1]}
58... Nd3+ {[%clk 0:00:11.7]} 59. Kxe2 {[%clk 0:00:18.4]} 59... Nxc5 {[%clk
0:00:12.9]} 60. bxc5 {[%clk 0:00:20.3]} 60... Ke5 {[%clk 0:00:14.7]} 61. Kd3
{[%clk 0:00:18]} 61... Kd5 {[%clk 0:00:15.3]} 62. Kc3 {[%clk 0:00:19.7]} 62...
Kxc5 {[%clk 0:00:16.7]} 63. Kb3 {[%clk 0:00:21.1]} 63... Kb6 {[%clk 0:00:18.1]}
64. Kb4 {[%clk 0:00:21.9]} 64... Ka7 {[%clk 0:00:20]} 65. a5 {[%clk 0:00:23.4]}
65... Ka8 {[%clk 0:00:21.6]} 66. Kb5 {[%clk 0:00:24.8]} 66... Ka7 {[%clk
0:00:22.3]} 1/2-1/2